[Event "FIDE WCCC Open-10 2024"]
[Site "Montesilvano"]
[Date "2024.11.18"]
[Round "2.18"]
[White "Fattori Dittmar, Luca"]
[Black "Anand, Tsogtbileg"]
[Result "0-1"]
[ECO "B92"]
[WhiteElo "1766"]
[BlackElo "1974"]
[PlyCount "50"]
[EventDate "2024.11.18"]
[EventType "swiss"]
[EventCountry "ITA"]
[TimeControl "5400+30"]

1. e4 {[%emt 0:00:12]} c5 {[%emt 0:00:29]} 2. Nf3 {[%emt 0:00:35]} d6 {[%emt 0:00:30]} 3. d4 {[%emt 0:00:38]} cxd4 {[%emt 0:01:31]} 4. Nxd4 {[%emt 0:01:28]} Nf6 {[%emt 0:00:30]} 5. Nc3 {[%emt 0:00:19]} a6 {[%emt 0:00:29]} 6. Be3 {[%emt 0:00:14]} e5 {[%emt 0:01:00]} 7. Nb3 {[%emt 0:00:51]} Be6 {[%emt 0:01:08]} 8. Be2 {[%emt 0:05:24]} Be7 {[%emt 0:01:49]} 9. O-O {[%emt 0:01:05]} Nbd7 {[%emt 0:03:01]} 10. f3 {[%emt 0:00:39]} Rc8 {[%emt 0:01:49]} 11. Qd2 {[%emt 0:05:02]} Nb6 {[%emt 0:03:56]} 12. Rad1 {[%emt 0:03:08]} Nc4 {[%emt 0:01:20]} 13. Bxc4 {[%emt 0:00:25]} Bxc4 {[%emt 0:00:17]} 14. Rf2 {[%emt 0:02:24]} b5 {[%emt 0:03:11]} 15. Nd5 {[%emt 0:02:14]} Nxd5 {[%emt 0:02:28]} 16. exd5 {[%emt 0:00:36]} O-O {[%emt 0:00:30]} 17. Na5 {[%emt 0:00:52]} Bxd5 {[%emt 0:00:59]} 18. Qxd5 {[%emt 0:00:59]} Qxa5 {[%emt 0:00:10]} 19. Bd2 {[%emt 0:03:25]} Qb6 {[%emt 0:00:43]} 20. Bb4 {[%emt 0:04:48]} Rxc2 {[%emt 0:01:21]} 21. Rdd2 {[%emt 0:00:54]} Rc1+ {[%emt 0:01:31]} 22. Rd1 {[%emt 0:00:10]} Rxd1+ {[%emt 0:00:32]} 23. Qxd1 {[%emt 0:00:08]} a5 {[%emt 0:01:26]} 24. Bd2 {[%emt 0:00:30]} d5 {[%emt 0:01:57]} 25. Qe1 {[%emt 0:00:19]} Bc5 {[%emt 0:00:11]} 0-1

[Event "FIDE WCCC Open-10 2024"]
[Site "Montesilvano"]
[Date "2024.11.18"]
[Round "2.18"]
[White "Vukashinovikj, Jovan"]
[Black "Della Penna, Leonardo"]
[Result "0-1"]
[ECO "B52"]
[WhiteElo "1454"]
[BlackElo "1675"]
[PlyCount "70"]
[EventDate "2024.11.18"]
[EventType "swiss"]
[EventCountry "ITA"]
[TimeControl "5400+30"]

1. e4 {[%emt 0:00:06]} c5 {[%emt 0:00:13]} 2. Nf3 {[%emt 0:00:06]} d6 {[%emt 0:00:09]} 3. Bb5+ {[%emt 1:31:48]} Bd7 {[%emt 0:00:43]} 4. Bxd7+ {[%emt 0:00:30]} Qxd7 {[%emt 0:00:28]} 5. O-O {[%emt 0:00:00]} Nc6 {[%emt 0:00:53]} 6. c3 {[%emt 0:00:00]} Nf6 {[%emt 1:31:04]} 7. d4 {[%emt 0:00:00]} cxd4 {[%emt 0:00:00]} 8. cxd4 {[%emt 0:00:00]} e5 {[%emt 0:00:00]} 9. d5 {[%emt 0:00:00]} Ne7 {[%emt 0:00:00]} 10. Nc3 {[%emt 0:00:00]} Ng6 {[%emt 0:00:00]} 11. Ne1 {[%emt 0:00:00]} Be7 {[%emt 0:00:00]} 12. Nd3 {[%emt 0:00:00]} O-O {[%emt 0:00:00]} 13. f4 {[%emt 0:00:00]} exf4 {[%emt 0:00:00]} 14. Nxf4 {[%emt 0:00:00]} Ne5 {[%emt 0:00:00]} 15. Be3 {[%emt 0:00:00]} b5 {[%emt 0:00:00]} 16. a3 {[%emt 0:00:00]} a6 {[%emt 0:00:00]} 17. b3 {[%emt 0:06:30]} Rac8 {[%emt 0:00:00]} 18. Bd4 {[%emt 0:00:00]} a5 {[%emt 0:00:00]} 19. Qe2 {[%emt 0:00:00]} Rb8 {[%emt 0:00:00]} 20. Nd3 {[%emt 0:00:00]} Rfe8 {[%emt 0:00:00]} 21. Bxe5 {[%emt 0:00:00]} dxe5 {[%emt 0:00:00]} 22. Nxe5 {[%emt 0:00:00]} Bc5+ {[%emt 0:00:00]} 23. Kh1 {[%emt 0:00:00]} Rxe5 {[%emt 0:00:00]} 24. Qf3 {[%emt 0:00:00]} Rbe8 {[%emt 0:00:00]} 25. Rae1 {[%emt 0:00:00]} Bxa3 {[%emt 0:00:00]} 26. Qd3 {[%emt 0:00:00]} Bb4 {[%emt 0:00:00]} 27. h3 {[%emt 0:00:00]} Bxc3 {[%emt 0:00:00]} 28. Qxc3 {[%emt 0:00:00]} Nxe4 {[%emt 0:00:00]} 29. Qd4 {[%emt 0:00:00]} Ng3+ {[%emt 0:00:00]} 30. Kg1 {[%emt 0:00:00]} Rxe1 {[%emt 0:00:00]} 31. Rxe1 {[%emt 0:00:00]} Rxe1+ {[%emt 0:00:00]} 32. Kf2 {[%emt 0:00:00]} Rf1+ {[%emt 0:00:00]} 33. Kxg3 {[%emt 0:00:00]} Qd6+ {[%emt 0:00:00]} 34. Kg4 {[%emt 0:00:00]} f5+ {[%emt 0:00:00]} 35. Kh5 {[%emt 0:00:00]} Qh6# {[%emt 0:00:00]} 0-1

[Event "FIDE WCCC Open-10 2024"]
[Site "Montesilvano"]
[Date "2024.11.18"]
[Round "2.19"]
[White "Ling, Chenxuan"]
[Black "Nguyen, Huynh Minh Huy"]
[Result "1/2-1/2"]
[ECO "B22"]
[WhiteElo "1967"]
[BlackElo "2423"]
[PlyCount "86"]
[EventDate "2024.11.18"]
[EventType "swiss"]
[EventCountry "ITA"]
[TimeControl "5400+30"]

1. e4 {[%emt 0:00:22]} c5 {[%emt 0:00:14]} 2. c3 {[%emt 0:00:24]} Nf6 {[%emt 0:00:26]} 3. e5 {[%emt 0:00:06]} Nd5 {[%emt 0:00:09]} 4. d4 {[%emt 0:00:04]} cxd4 {[%emt 0:00:18]} 5. cxd4 {[%emt 0:00:03]} d6 {[%emt 0:01:15]} 6. Nf3 {[%emt 0:00:09]} Nc6 {[%emt 0:01:35]} 7. Bc4 {[%emt 0:01:16]} e6 {[%emt 0:03:14]} 8. O-O {[%emt 0:00:38]} Be7 {[%emt 0:00:29]} 9. Qe2 {[%emt 0:01:21]} O-O {[%emt 0:02:05]} 10. Rd1 {[%emt 0:01:48]} Nb6 {[%emt 0:03:00]} 11. Bb3 {[%emt 0:01:16]} Qc7 {[%emt 0:04:38]} 12. Nc3 {[%emt 0:00:46]} a6 {[%emt 0:01:42]} 13. Qe4 {[%emt 0:01:53]} Rd8 {[%emt 0:15:05]} 14. Bc2 {[%emt 0:01:21]} g6 {[%emt 0:00:12]} 15. Bf4 {[%emt 0:10:30]} d5 {[%emt 0:08:16]} 16. Qe2 {[%emt 0:01:14]} Nc4 {[%emt 0:01:50]} 17. h4 {[%emt 0:01:38]} Nxb2 {[%emt 0:02:54]} 18. Rdc1 {[%emt 0:07:29]} Nc4 {[%emt 0:00:50]} 19. h5 {[%emt 0:03:03]} Ba3 {[%emt 0:02:13]} 20. hxg6 {[%emt 0:02:00]} fxg6 {[%emt 0:01:38]} 21. Bg5 {[%emt 0:00:30]} Rf8 {[%emt 0:00:19]} 22. Bf6 {[%emt 0:01:27]} Bxc1 {[%emt 0:01:07]} 23. Rxc1 {[%emt 0:00:10]} b5 {[%emt 0:01:47]} 24. g3 {[%emt 0:16:25]} Qa5 {[%emt 0:05:30]} 25. Ng5 {[%emt 0:03:18]} Ra7 {[%emt 0:09:38]} 26. Nxh7 {[%emt 0:03:56]} Rxh7 {[%emt 0:00:23]} 27. Bxg6 {[%emt 0:00:56]} Qc7 {[%emt 0:00:27]} 28. Kg2 {[%emt 0:05:21]} Rh6 {[%emt 0:04:17]} 29. Qg4 {[%emt 0:13:20]} Rxf6 {[%emt 0:03:24]} 30. exf6 {[%emt 0:00:08]} Kf8 {[%emt 0:01:01]} 31. Qg5 {[%emt 0:00:51]} Rh8 {[%emt 0:00:38]} 32. Rh1 {[%emt 0:00:21]} Rxh1 {[%emt 0:00:30]} 33. Kxh1 {[%emt 0:22:56]} Nd6 {[%emt 0:01:05]} 34. Qh6+ {[%emt 0:00:00]} Kg8 {[%emt 0:00:23]} 35. Ne2 {[%emt 0:00:00]} e5 {[%emt 0:01:23]} 36. Qg5 {[%emt 0:00:00]} Kf8 {[%emt 0:07:05]} 37. dxe5 {[%emt 0:00:00]} Nf7 {[%emt 0:00:16]} 38. Bxf7 {[%emt 0:00:00]} Qxf7 {[%emt 0:00:16]} 39. Nf4 {[%emt 0:00:00]} Qh7+ {[%emt 0:01:25]} 40. Kg1 {[%emt 0:00:00]} Qb1+ {[%emt 0:06:15]} 41. Kh2 {[%emt 0:00:00]} Qh7+ {[%emt 0:00:13]} 42. Kg1 {[%emt 0:00:00]} Qb1+ {[%emt 0:00:08]} 43. Kh2 {[%emt 0:00:00]} Qh7+ {[%emt 0:00:06]} 1/2-1/2

[Event "FIDE WCCC Open-10 2024"]
[Site "Montesilvano"]
[Date "2024.11.18"]
[Round "2.19"]
[White "Golya, David"]
[Black "Loberti, Tommaso"]
[Result "1-0"]
[ECO "C54"]
[WhiteElo "1672"]
[BlackElo "1474"]
[PlyCount "49"]
[EventDate "2024.11.18"]
[EventType "swiss"]
[EventCountry "ITA"]
[TimeControl "5400+30"]

1. e4 {[%emt 0:00:02]} e5 {[%emt 0:00:01]} 2. Nf3 {[%emt 0:00:07]} Nc6 {[%emt 0:00:06]} 3. Bc4 {[%emt 0:00:04]} Bc5 {[%emt 0:00:17]} 4. c3 {[%emt 0:00:28]} Nf6 {[%emt 0:02:26]} 5. d3 {[%emt 0:00:14]} h6 {[%emt 0:01:47]} 6. Nbd2 {[%emt 0:06:46]} d6 {[%emt 0:09:36]} 7. O-O {[%emt 0:01:23]} Be6 {[%emt 0:03:43]} 8. Bxe6 {[%emt 0:09:27]} fxe6 {[%emt 0:00:14]} 9. Qb3 {[%emt 0:00:28]} Qc8 {[%emt 0:08:07]} 10. Nc4 {[%emt 0:04:52]} Bb6 {[%emt 0:05:03]} 11. Be3 {[%emt 0:09:06]} Bxe3 {[%emt 0:10:04]} 12. Nxe3 {[%emt 0:00:25]} O-O {[%emt 0:02:40]} 13. Rad1 {[%emt 0:04:45]} a6 {[%emt 0:03:34]} 14. Rfe1 {[%emt 0:09:29]} Qd7 {[%emt 0:04:06]} 15. d4 {[%emt 0:10:52]} exd4 {[%emt 0:07:26]} 16. Nxd4 {[%emt 0:01:37]} Nxd4 {[%emt 0:02:07]} 17. Rxd4 {[%emt 0:00:37]} Kh8 {[%emt 0:06:13]} 18. e5 {[%emt 0:04:32]} Ne8 {[%emt 0:03:15]} 19. exd6 {[%emt 0:01:09]} Qf7 {[%emt 0:02:23]} 20. f3 {[%emt 0:09:06]} cxd6 {[%emt 0:03:30]} 21. Nc4 {[%emt 0:02:10]} Rd8 {[%emt 0:04:23]} 22. Qb6 {[%emt 0:02:43]} Qe7 {[%emt 0:02:40]} 23. h3 {[%emt 0:05:38]} d5 {[%emt 0:03:37]} 24. Rxe6 {[%emt 0:01:21]} Qd7 {[%emt 0:00:20]} 25. Ne5 {[%emt 0:00:18]} 1-0

[Event "FIDE WCCC Open-10 2024"]
[Site "Montesilvano"]
[Date "2024.11.18"]
[Round "2.20"]
[White "Azimov, Yasin"]
[Black "Chakhalov, Mikael"]
[Result "1-0"]
[ECO "E04"]
[WhiteElo "1759"]
[BlackElo "1962"]
[PlyCount "107"]
[EventDate "2024.11.18"]
[EventType "swiss"]
[EventCountry "ITA"]
[TimeControl "5400+30"]

1. d4 {[%emt 0:00:04]} d5 {[%emt 0:00:13]} 2. c4 {[%emt 0:00:06]} e6 {[%emt 0:00:14]} 3. Nf3 {[%emt 0:00:07]} Nf6 {[%emt 0:00:09]} 4. g3 {[%emt 0:00:07]} dxc4 {[%emt 0:00:14]} 5. Bg2 {[%emt 0:01:44]} Nc6 {[%emt 0:00:51]} 6. Qa4 {[%emt 0:02:31]} Nd7 {[%emt 0:00:18]} 7. Qxc4 {[%emt 0:00:40]} Nb6 {[%emt 0:00:10]} 8. Qd3 {[%emt 0:00:28]} e5 {[%emt 0:01:10]} 9. Nxe5 {[%emt 0:07:26]} Nb4 {[%emt 0:00:20]} 10. Qd1 {[%emt 0:00:09]} Qxd4 {[%emt 0:00:31]} 11. Qxd4 {[%emt 0:00:08]} Nc2+ {[%emt 0:00:07]} 12. Kf1 {[%emt 0:00:05]} Nxd4 {[%emt 0:00:05]} 13. Nc3 {[%emt 0:00:09]} Bd6 {[%emt 0:01:15]} 14. Nd3 {[%emt 0:00:57]} c6 {[%emt 0:01:24]} 15. Bf4 {[%emt 0:01:47]} Bxf4 {[%emt 0:02:38]} 16. Nxf4 {[%emt 0:00:13]} Bf5 {[%emt 0:01:57]} 17. Rd1 {[%emt 0:01:59]} O-O-O {[%emt 0:00:57]} 18. e3 {[%emt 0:12:22]} Ne6 {[%emt 1:26:57]} 19. Ke2 {[%emt 0:06:16]} Nxf4+ {[%emt 0:00:00]} 20. gxf4 {[%emt 0:00:08]} Bg4+ {[%emt 0:00:00]} 21. Bf3 {[%emt 0:00:13]} Bxf3+ {[%emt 0:00:00]} 22. Kxf3 {[%emt 0:00:02]} f5 {[%emt 0:00:00]} 23. b3 {[%emt 0:01:24]} Kc7 {[%emt 0:00:00]} 24. Ne2 {[%emt 0:01:00]} g6 {[%emt 0:00:00]} 25. Nd4 {[%emt 0:00:13]} Rhe8 {[%emt 0:00:00]} 26. h4 {[%emt 0:01:04]} h5 {[%emt 0:00:00]} 27. Rhg1 {[%emt 0:00:15]} Rd6 {[%emt 0:00:00]} 28. Rg5 {[%emt 0:06:52]} a6 {[%emt 0:00:00]} 29. Rdg1 {[%emt 0:03:11]} c5 {[%emt 0:00:00]} 30. Rc1 {[%emt 0:00:06]} Nd7 {[%emt 0:00:00]} 31. b4 {[%emt 0:00:33]} b6 {[%emt 0:00:00]} 32. Nb3 {[%emt 0:01:56]} Rc6 {[%emt 0:00:00]} 33. bxc5 {[%emt 0:01:17]} bxc5 {[%emt 0:00:00]} 34. Na5 {[%emt 0:00:32]} Rf6 {[%emt 0:00:00]} 35. Rcg1 {[%emt 0:01:16]} Ree6 {[%emt 0:00:00]} 36. Nc4 {[%emt 0:02:02]} Kc6 {[%emt 0:00:00]} 37. Ke2 {[%emt 0:00:26]} Kd5 {[%emt 0:00:00]} 38. Kd3 {[%emt 0:00:10]} Re4 {[%emt 0:00:00]} 39. Rc1 {[%emt 0:00:36]} Nb6 {[%emt 0:00:00]} 40. Ne5 {[%emt 0:01:09]} c4+ {[%emt 0:00:00]} 41. Kc2 {[%emt 0:00:53]} Re6 {[%emt 0:00:00]} 42. Nxg6 {[%emt 0:00:46]} Kc5 {[%emt 0:00:00]} 43. Rxf5+ {[%emt 0:00:36]} Kb4 {[%emt 0:00:00]} 44. Rb1+ {[%emt 0:00:09]} Ka3 {[%emt 0:00:00]} 45. Ra5+ {[%emt 0:00:08]} Na4 {[%emt 0:00:00]} 46. Ne5 {[%emt 0:00:30]} Rd6 {[%emt 0:03:05]} 47. f3 {[%emt 0:00:56]} Rxe5 {[%emt 0:00:14]} 48. Rxe5 {[%emt 0:02:29]} c3 {[%emt 0:01:18]} 49. Rb3+ {[%emt 0:00:02]} Kxa2 {[%emt 0:00:09]} 50. Rxc3 {[%emt 0:00:06]} Nxc3 {[%emt 0:00:24]} 51. Kxc3 {[%emt 0:00:02]} Rc6+ {[%emt 0:00:37]} 52. Kb4 {[%emt 0:00:07]} Kb2 {[%emt 0:00:29]} 53. Rxh5 {[%emt 0:00:15]} Kc2 {[%emt 0:00:11]} 54. Rc5+ {[%emt 0:00:09]} 1-0

[Event "FIDE WCCC Open-10 2024"]
[Site "Montesilvano"]
[Date "2024.11.18"]
[Round "2.21"]
[White "Zhauynbay, Alimzhan"]
[Black "Kadyr, Aldiyar"]
[Result "1-0"]
[ECO "B38"]
[WhiteElo "1953"]
[BlackElo "1759"]
[PlyCount "83"]
[EventDate "2024.11.18"]
[EventType "swiss"]
[EventCountry "ITA"]
[TimeControl "5400+30"]

1. e4 {[%emt 0:00:10]} c5 {[%emt 0:00:04]} 2. Nf3 {[%emt 0:00:05]} Nc6 {[%emt 0:00:05]} 3. d4 {[%emt 0:00:13]} cxd4 {[%emt 0:00:13]} 4. Nxd4 {[%emt 0:00:03]} g6 {[%emt 0:00:05]} 5. c4 {[%emt 0:00:19]} Bg7 {[%emt 0:00:09]} 6. Be3 {[%emt 0:00:06]} Nf6 {[%emt 0:00:08]} 7. Nc3 {[%emt 0:00:16]} O-O {[%emt 0:00:08]} 8. Be2 {[%emt 0:00:05]} d6 {[%emt 0:00:16]} 9. O-O {[%emt 0:00:07]} Bd7 {[%emt 0:00:10]} 10. h3 {[%emt 0:01:25]} Nxd4 {[%emt 0:00:37]} 11. Bxd4 {[%emt 0:00:07]} Bc6 {[%emt 0:00:04]} 12. Qc2 {[%emt 0:01:39]} a5 {[%emt 0:00:46]} 13. Rad1 {[%emt 0:00:58]} Nd7 {[%emt 0:03:26]} 14. Bxg7 {[%emt 0:01:44]} Kxg7 {[%emt 0:01:26]} 15. Bg4 {[%emt 0:01:02]} Nf6 {[%emt 0:04:26]} 16. e5 {[%emt 0:00:53]} Nxg4 {[%emt 0:00:15]} 17. hxg4 {[%emt 0:00:02]} Qc7 {[%emt 0:03:33]} 18. exd6 {[%emt 0:01:25]} exd6 {[%emt 0:00:11]} 19. Nd5 {[%emt 0:04:56]} Bxd5 {[%emt 0:00:48]} 20. Rxd5 {[%emt 0:00:12]} Rac8 {[%emt 0:03:42]} 21. b3 {[%emt 0:03:46]} Rfe8 {[%emt 0:03:14]} 22. Qc3+ {[%emt 0:04:42]} Kg8 {[%emt 0:00:10]} 23. Qxa5 {[%emt 0:02:22]} Qd7 {[%emt 0:01:01]} 24. g5 {[%emt 0:01:42]} Qe6 {[%emt 1:17:33]} 25. Rfd1 {[%emt 0:05:55]} Rc6 {[%emt 0:00:00]} 26. Qb4 {[%emt 0:02:03]} Qe7 {[%emt 0:00:00]} 27. Qd2 {[%emt 0:06:09]} Qd7 {[%emt 0:00:00]} 28. Qf4 {[%emt 0:03:42]} Re2 {[%emt 0:00:00]} 29. Rxd6 {[%emt 0:04:36]} Rxd6 {[%emt 0:00:00]} 30. Rxd6 {[%emt 0:00:07]} Qc7 {[%emt 0:00:00]} 31. Rxg6+ {[%emt 0:00:08]} fxg6 {[%emt 0:00:00]} 32. Qxc7 {[%emt 0:01:49]} Re1+ {[%emt 0:00:00]} 33. Kh2 {[%emt 0:00:03]} Ra1 {[%emt 0:00:00]} 34. Qd8+ {[%emt 0:00:07]} Kf7 {[%emt 0:00:00]} 35. Qf6+ {[%emt 0:00:04]} Kg8 {[%emt 0:00:00]} 36. Qxa1 {[%emt 0:00:07]} Kf7 {[%emt 0:00:00]} 37. Qe5 {[%emt 0:00:14]} Kg8 {[%emt 0:00:00]} 38. Qf6 {[%emt 0:00:06]} b6 {[%emt 0:00:00]} 39. b4 {[%emt 0:00:05]} b5 {[%emt 0:00:00]} 40. cxb5 {[%emt 0:00:05]} h5 {[%emt 0:00:00]} 41. gxh6 {[%emt 0:00:06]} g5 {[%emt 0:00:00]} 42. Qg7# {[%emt 0:00:05]} 1-0

[Event "FIDE WCCC Open-10 2024"]
[Site "Montesilvano"]
[Date "2024.11.18"]
[Round "2.21"]
[White "Barsov, Mikhail"]
[Black "McFadden, Oisin"]
[Result "1-0"]
[ECO "A20"]
[WhiteElo "1668"]
[BlackElo "1464"]
[PlyCount "43"]
[EventDate "2024.11.18"]
[EventType "swiss"]
[EventCountry "ITA"]
[TimeControl "5400+30"]

1. c4 {[%emt 0:00:02]} e5 {[%emt 0:00:00]} 2. g3 {[%emt 0:00:03]} Nf6 {[%emt 0:00:00]} 3. Bg2 {[%emt 0:00:04]} c6 {[%emt 0:00:07]} 4. Nf3 {[%emt 0:00:28]} e4 {[%emt 0:00:18]} 5. Nd4 {[%emt 0:00:05]} d5 {[%emt 0:00:18]} 6. cxd5 {[%emt 0:00:06]} cxd5 {[%emt 0:00:04]} 7. d3 {[%emt 0:00:35]} Bc5 {[%emt 0:01:13]} 8. dxe4 {[%emt 0:00:11]} dxe4 {[%emt 0:00:16]} 9. Be3 {[%emt 0:00:54]} Ng4 {[%emt 0:01:27]} 10. O-O {[%emt 0:07:46]} Nxe3 {[%emt 0:00:10]} 11. fxe3 {[%emt 0:00:47]} O-O {[%emt 0:00:30]} 12. Nc3 {[%emt 0:00:47]} f5 {[%emt 0:03:00]} 13. Qa4 {[%emt 0:12:29]} Bd7 {[%emt 0:02:11]} 14. Qc4+ {[%emt 0:02:04]} Kh8 {[%emt 0:01:07]} 15. Qxc5 {[%emt 0:00:55]} Na6 {[%emt 0:01:17]} 16. Qd5 {[%emt 0:03:51]} Rb8 {[%emt 0:01:29]} 17. a3 {[%emt 0:01:59]} Qg5 {[%emt 0:01:52]} 18. Qxd7 {[%emt 0:06:09]} Qxe3+ {[%emt 0:00:14]} 19. Kh1 {[%emt 0:00:50]} Rfd8 {[%emt 0:00:10]} 20. Qxf5 {[%emt 0:00:10]} Rxd4 {[%emt 0:00:21]} 21. Qf8+ {[%emt 0:00:12]} Rxf8 {[%emt 0:00:09]} 22. Rxf8# {[%emt 0:00:36]} 1-0

[Event "FIDE WCCC Open-10 2024"]
[Site "Montesilvano"]
[Date "2024.11.18"]
[Round "2.22"]
[White "Mikkelsen, Anders Askjaer"]
[Black "Fuentes de Nova, Sebastian"]
[Result "1/2-1/2"]
[ECO "C54"]
[WhiteElo "1745"]
[BlackElo "1929"]
[PlyCount "101"]
[EventDate "2024.11.18"]
[EventType "swiss"]
[EventCountry "ITA"]
[TimeControl "5400+30"]

1. e4 {[%emt 0:00:11]} e5 {[%emt 0:00:30]} 2. Nf3 {[%emt 0:00:20]} Nc6 {[%emt 0:01:30]} 3. Bc4 {[%emt 0:00:34]} Bc5 {[%emt 0:00:50]} 4. c3 {[%emt 0:00:19]} Nf6 {[%emt 0:00:27]} 5. d4 {[%emt 0:00:12]} exd4 {[%emt 0:00:24]} 6. e5 {[%emt 0:00:23]} d5 {[%emt 0:00:49]} 7. Bb5 {[%emt 0:00:12]} Ne4 {[%emt 0:02:02]} 8. cxd4 {[%emt 0:00:14]} Bb6 {[%emt 0:00:30]} 9. h3 {[%emt 0:05:17]} Bd7 {[%emt 0:02:29]} 10. Bxc6 {[%emt 0:00:42]} Bxc6 {[%emt 0:00:13]} 11. O-O {[%emt 0:00:45]} O-O {[%emt 0:02:40]} 12. Nc3 {[%emt 0:03:58]} f6 {[%emt 0:05:15]} 13. Qb3 {[%emt 0:08:36]} Kh8 {[%emt 0:00:24]} 14. Be3 {[%emt 0:00:25]} fxe5 {[%emt 0:07:19]} 15. Nxe5 {[%emt 0:02:52]} a5 {[%emt 0:12:39]} 16. a4 {[%emt 0:02:01]} Nf6 {[%emt 0:05:49]} 17. Ne2 {[%emt 0:09:18]} Nd7 {[%emt 0:13:05]} 18. f4 {[%emt 0:05:09]} Nxe5 {[%emt 0:06:26]} 19. fxe5 {[%emt 0:02:47]} Qh4 {[%emt 0:01:02]} 20. Nf4 {[%emt 0:03:38]} Bxd4 {[%emt 0:03:11]} 21. Kh2 {[%emt 0:01:52]} Bxe5 {[%emt 0:01:21]} 22. g3 {[%emt 0:01:19]} Bxf4 {[%emt 0:01:48]} 23. Bxf4 {[%emt 0:00:53]} Qe7 {[%emt 0:00:16]} 24. Rfe1 {[%emt 0:02:04]} Qd7 {[%emt 0:05:47]} 25. Re5 {[%emt 0:02:55]} Rae8 {[%emt 0:01:28]} 26. Rae1 {[%emt 0:01:48]} Rxe5 {[%emt 0:01:46]} 27. Rxe5 {[%emt 0:00:09]} Re8 {[%emt 0:00:19]} 28. Qe3 {[%emt 0:01:45]} d4 {[%emt 0:00:19]} 29. Rxe8+ {[%emt 0:00:51]} Qxe8 {[%emt 0:00:23]} 30. Qxe8+ {[%emt 0:00:11]} Bxe8 {[%emt 0:00:29]} 31. Bxc7 {[%emt 0:00:07]} Kg8 {[%emt 0:00:50]} 32. Kg2 {[%emt 0:00:58]} Bc6+ {[%emt 0:00:43]} 33. Kf2 {[%emt 0:00:19]} Kf7 {[%emt 0:00:10]} 34. Ke2 {[%emt 0:01:23]} Bxa4 {[%emt 0:01:13]} 35. Kd3 {[%emt 0:01:11]} Bb5+ {[%emt 0:00:28]} 36. Kxd4 {[%emt 0:00:12]} a4 {[%emt 0:00:07]} 37. Kc5 {[%emt 0:00:57]} Bd7 {[%emt 0:01:31]} 38. h4 {[%emt 0:00:14]} Ke6 {[%emt 0:02:18]} 39. Kb6 {[%emt 0:00:59]} Bc6 {[%emt 0:01:01]} 40. Bb8 {[%emt 0:00:29]} Kd5 {[%emt 0:00:39]} 41. Bc7 {[%emt 0:00:27]} Kc4 {[%emt 0:00:08]} 42. Be5 {[%emt 0:00:19]} g6 {[%emt 0:00:06]} 43. Bh8 {[%emt 0:01:08]} Bf3 {[%emt 0:00:34]} 44. Bg7 {[%emt 0:00:30]} Kd3 {[%emt 0:01:08]} 45. Be5 {[%emt 0:00:46]} Bc6 {[%emt 0:00:27]} 46. Bg7 {[%emt 0:00:25]} Ke4 {[%emt 0:00:41]} 47. Bh8 {[%emt 0:00:20]} Kf5 {[%emt 0:00:20]} 48. Bg7 {[%emt 0:00:16]} Ke4 {[%emt 0:02:15]} 49. Bh8 {[%emt 0:00:27]} Kf3 {[%emt 0:00:32]} 50. Be5 {[%emt 0:00:12]} Ke4 {[%emt 0:01:11]} 51. Bh8 {[%emt 0:42:41]} 1/2-1/2

[Event "FIDE WCCC Open-10 2024"]
[Site "Montesilvano"]
[Date "2024.11.18"]
[Round "2.23"]
[White "Andre, Tomas"]
[Black "Sander, Tino"]
[Result "1-0"]
[ECO "C45"]
[WhiteElo "1928"]
[BlackElo "1736"]
[PlyCount "81"]
[EventDate "2024.11.18"]
[EventType "swiss"]
[EventCountry "ITA"]
[TimeControl "5400+30"]

1. e4 {[%emt 0:00:30]} e5 {[%emt 0:00:11]} 2. Nf3 {[%emt 0:00:05]} Nc6 {[%emt 0:00:10]} 3. d4 {[%emt 0:00:07]} exd4 {[%emt 0:00:15]} 4. Nxd4 {[%emt 0:00:04]} Nf6 {[%emt 0:00:18]} 5. Nxc6 {[%emt 0:00:32]} bxc6 {[%emt 0:00:09]} 6. Nd2 {[%emt 0:00:19]} d5 {[%emt 0:00:55]} 7. exd5 {[%emt 0:00:10]} cxd5 {[%emt 0:00:20]} 8. Bb5+ {[%emt 0:00:08]} Bd7 {[%emt 0:00:29]} 9. Bxd7+ {[%emt 0:00:11]} Qxd7 {[%emt 0:00:20]} 10. O-O {[%emt 0:00:11]} Be7 {[%emt 0:00:36]} 11. b3 {[%emt 0:00:08]} O-O {[%emt 0:00:27]} 12. Bb2 {[%emt 0:00:05]} a5 {[%emt 0:02:16]} 13. a4 {[%emt 0:00:16]} c5 {[%emt 0:03:20]} 14. Qf3 {[%emt 0:00:35]} d4 {[%emt 0:02:51]} 15. Nc4 {[%emt 0:03:25]} Nd5 {[%emt 0:03:20]} 16. Rad1 {[%emt 0:01:42]} Bf6 {[%emt 0:07:42]} 17. c3 {[%emt 0:03:49]} Qc6 {[%emt 0:09:00]} 18. cxd4 {[%emt 0:00:35]} cxd4 {[%emt 0:00:27]} 19. Bxd4 {[%emt 0:00:17]} Bxd4 {[%emt 0:00:04]} 20. Rxd4 {[%emt 0:00:03]} Nb4 {[%emt 0:00:47]} 21. Nxa5 {[%emt 0:05:32]} Qxf3 {[%emt 0:00:49]} 22. gxf3 {[%emt 0:00:14]} Nc2 {[%emt 0:01:00]} 23. Rd5 {[%emt 0:00:40]} Rfe8 {[%emt 0:06:49]} 24. Nc6 {[%emt 0:06:10]} Ne1 {[%emt 0:02:11]} 25. f4 {[%emt 0:01:53]} Ra6 {[%emt 0:03:17]} 26. Ne7+ {[%emt 0:00:19]} Kf8 {[%emt 0:01:16]} 27. Rxe1 {[%emt 0:00:03]} Ra7 {[%emt 0:06:25]} 28. Rde5 {[%emt 0:00:11]} Raxe7 {[%emt 0:00:41]} 29. Rxe7 {[%emt 0:00:11]} Rxe7 {[%emt 0:00:07]} 30. Rxe7 {[%emt 0:00:05]} Kxe7 {[%emt 0:00:19]} 31. a5 {[%emt 0:00:03]} Kd7 {[%emt 0:00:22]} 32. a6 {[%emt 0:00:06]} Kc7 {[%emt 0:00:06]} 33. b4 {[%emt 0:00:05]} Kb6 {[%emt 0:00:26]} 34. b5 {[%emt 0:00:13]} f6 {[%emt 0:00:20]} 35. f5 {[%emt 0:00:05]} g6 {[%emt 0:00:13]} 36. fxg6 {[%emt 0:00:01]} hxg6 {[%emt 0:00:18]} 37. f4 {[%emt 0:00:01]} g5 {[%emt 0:00:52]} 38. fxg5 {[%emt 0:00:13]} fxg5 {[%emt 0:00:04]} 39. h4 {[%emt 0:00:08]} gxh4 {[%emt 0:00:10]} 40. Kh2 {[%emt 0:00:02]} Ka7 {[%emt 0:50:48]} 41. Kh3 {[%emt 0:00:03]} 1-0